bitfinex/quotes_SOLUSD_20250102
["timestamp","ask_amount","ask_price","bid_price","bid_amount"]
[1735838233585,14.62169229,207.8,207.73,13.90043964]
[1735838233888,15.42383964,207.81,207.74,13.90043964]
[1735838234073,13.90043964,207.84,207.77,13.90043964]
[1735838234384,10.4555884,207.86,207.78,8.9045884]
[1735838234573,8.9045884,207.85,207.78,8.9045884]
[1735838235273,8.9045884,207.85,207.75,0.72178906]
[1735838235274,8.9045884,207.88,207.82,20.0]
[1735838235486,8.9045884,207.89,207.82,28.9045884]
[1735838235671,8.9045884,207.85,207.78,8.9045884]
[1735838235874,8.9045884,207.84,207.77,8.9045884]
[1735838236191,8.9045884,207.82,207.73,30.0]
[1735838236390,8.9045884,207.82,207.74,8.9045884]
[1735838236562,8.9045884,207.81,207.74,8.9045884]
[1735838236886,8.9045884,207.8,207.73,8.9045884]
[1735838237599,1.616,207.83,207.75,20.0]
[1735838237600,8.9045884,207.79,207.75,20.0]
[1735838237779,8.9045884,207.78,207.71,9.62651934]
[1735838237963,8.9045884,207.77,207.7,38.9045884]
[1735838238163,8.9045884,207.79,207.71,8.9045884]
[1735838238673,8.9045884,207.79,207.72,8.9045884]
[1735838239397,8.9045884,207.81,207.73,28.9045884]
[1735838240102,9.62584105,207.8,207.73,28.9045884]
[1735838240399,14.64145714,207.8,207.73,33.92020449]
[1735838240692,13.92020449,207.8,207.73,33.92020449]
[1735838241971,13.92020449,207.79,207.73,20.0]
[1735838243107,13.92020449,207.76,207.69,13.92020449]
[1735838243391,13.92020449,207.75,207.67,43.92020449]
[1735838244096,13.92020449,207.74,207.67,43.92020449]
[1735838244271,13.92020449,207.75,207.67,43.92020449]
[1735838245194,13.92020449,207.74,207.67,43.92020449]
[1735838245380,13.92020449,207.75,207.68,13.92020449]
[1735838245693,13.92020449,207.79,207.72,13.92020449]
[1735838245988,13.92020449,207.78,207.71,13.92020449]
[1735838246195,13.92020449,207.77,207.7,43.92020449]
[1735838246887,0.72125265,207.82,207.68,12.0377]
[1735838246888,13.92020449,207.75,207.68,13.92020449]
[1735838248064,13.92020449,207.76,207.69,13.92020449]
[1735838248267,13.92020449,207.78,207.7,43.92020449]
[1735838248585,13.92020449,207.77,207.7,43.92020449]
[1735838248895,13.92020449,207.78,207.7,43.92020449]
[1735838249395,13.92020449,207.78,207.71,13.92020449]
[1735838250517,13.92020449,207.78,207.7,43.92020449]
[1735838251798,13.92020449,207.78,207.71,13.92020449]
[1735838252484,13.92020449,207.79,207.71,13.92020449]
[1735838253798,13.92020449,207.78,207.71,13.92020449]
[1735838254098,13.92020449,207.79,207.71,13.92020449]
[1735838254479,13.92020449,207.78,207.71,13.92020449]
[1735838254680,13.92020449,207.78,207.73,20.0]
[1735838262210,8.90977235,207.79,207.73,20.0]
[1735838262715,8.90977235,207.76,207.67,50.15207903]
[1735838262884,8.90977235,207.76,207.67,59.06185138]
[1735838263087,8.90977235,207.74,207.67,59.06185138]
[1735838263586,8.90977235,207.75,207.67,51.66972782]
[1735838264686,8.90977235,207.75,207.69,8.90977235]
[1735838265013,23.776884,207.78,207.7,8.90977235]
[1735838265219,9.631025,207.77,207.7,8.90977235]
[1735838265419,8.90977235,207.78,207.71,8.90977235]
[1735838266007,8.90977235,207.77,207.7,40.94627235]
[1735838266521,0.72125265,207.8,207.7,40.94627235]
[1735838266522,8.90977235,207.78,207.71,8.90977235]
[1735838266822,8.90977235,207.79,207.71,8.90977235]
[1735838268122,0.72125265,207.81,207.73,8.90977235]
[1735838268290,0.72125265,207.82,207.75,28.90977235]
[1735838268488,32.68665635,207.82,207.75,20.0]
[1735838268787,8.90977235,207.82,207.75,20.0]
[1735838269432,8.90977235,207.81,207.75,20.0]
[1735838269610,1.616,207.83,207.75,20.0]
[1735838269611,8.90977235,207.8,207.75,20.0]
[1735838270227,9.631025,207.79,207.72,20.94477235]
[1735838270401,8.90977235,207.78,207.72,12.035]
[1735838271633,0.72125265,207.77,207.71,8.90977235]
[1735838272129,9.631025,207.77,207.7,8.90977235]
[1735838272336,0.72125265,207.77,207.71,28.90977235]
[1735838272504,8.90977235,207.78,207.71,28.90977235]
[1735838272702,0.72125265,207.77,207.71,28.90977235]
[1735838272906,8.90977235,207.79,207.72,8.90977235]
[1735838273204,9.631025,207.78,207.71,28.90977235]
[1735838273405,8.90977235,207.79,207.72,8.90977235]
[1735838273732,9.631025,207.8,207.73,8.90977235]
[1735838273920,8.90977235,207.79,207.72,8.90977235]
[1735838274522,0.72125265,207.81,207.72,8.90977235]
[1735838274838,8.90977235,207.79,207.71,40.94567235]
[1735838275016,0.72125265,207.78,207.71,40.94567235]
[1735838275218,8.90977235,207.79,207.72,8.90977235]
[1735838275613,8.90977235,207.8,207.73,8.90977235]
[1735838278448,1.616,207.83,207.75,8.90977235]
[1735838278629,10.52577235,207.83,207.75,8.90977235]
[1735838278835,8.90977235,207.82,207.75,8.90977235]
[1735838280573,33.407909,207.81,207.73,20.94427235]
[1735838281453,0.72125265,207.86,207.8,8.90977235]
[1735838281653,0.72125265,207.87,207.8,8.90977235]
[1735838281857,1.5547,207.88,207.8,8.90977235]
[1735838282225,8.90977235,207.89,207.82,28.90977235]
[1735838282633,9.631025,207.88,207.82,20.0]
[1735838282832,8.90977235,207.89,207.82,20.0]
[1735838283332,8.90977235,207.9,207.82,58.90977235]
[1735838283641,8.90977235,207.9,207.83,8.90977235]
[1735838284663,8.90977235,207.91,207.84,8.90977235]
[1735838285637,0.72125265,207.92,207.82,62.0295]
[1735838285638,9.631025,207.92,207.85,8.90977235]
[1735838286533,8.90977235,207.91,207.84,8.90977235]
[1735838286743,0.72125265,207.9,207.83,8.90977235]
[1735838287065,8.90977235,207.91,207.83,8.90977235]
[1735838287668,8.90977235,207.92,207.85,8.90977235]
[1735838287835,16.97287235,207.93,207.85,8.90977235]
[1735838288036,8.0631,207.93,207.86,8.90977235]
[1735838288266,8.78435265,207.93,207.86,8.90977235]
[1735838288436,1.5942,207.93,207.87,8.90977235]
[1735838289162,2.31545265,207.93,207.86,8.90977235]
[1735838289542,11.225225,207.93,207.85,8.90977235]
[1735838289747,8.90977235,207.91,207.83,8.90977235]
[1735838290060,9.631025,207.91,207.83,8.90977235]
[1735838290442,32.68665635,207.9,207.82,20.0]
[1735838290647,0.72125265,207.89,207.83,20.0]
[1735838292968,0.72125265,207.89,207.74,32.1536]
[1735838292969,33.06312635,207.88,207.73,30.0]
[1735838293139,8.90977235,207.8,207.72,8.90977235]
[1735838293345,9.631025,207.79,207.72,8.90977235]
[1735838294267,14.64306002,207.79,207.72,13.92180737]
[1735838294567,13.92180737,207.8,207.72,13.92180737]
[1735838294763,0.72125265,207.79,207.72,13.92180737]
[1735838294958,14.64306002,207.79,207.72,13.92180737]
[1735838295165,13.92180737,207.76,207.68,30.0]
[1735838295475,2.27495265,207.79,207.66,13.92180737]
[1735838295476,13.92180737,207.73,207.66,13.92180737]
[1735838295645,0.72125265,207.72,207.66,13.92180737]
[1735838297671,0.72125265,207.73,207.67,13.92180737]
[1735838299776,13.92180737,207.76,207.69,13.92180737]
[1735838299983,0.72125265,207.75,207.69,13.92180737]
[1735838300975,14.64306002,207.75,207.68,13.92180737]
[1735838301867,0.72125265,207.75,207.69,13.92180737]
[1735838302680,2.27495265,207.79,207.72,13.92180737]
[1735838302863,2.27495265,207.79,207.74,13.92180737]
[1735838303049,2.27495265,207.79,207.73,13.92180737]
[1735838303343,2.27495265,207.79,207.72,13.92180737]
[1735838304865,1.5537,207.79,207.75,13.92180737]
[1735838305056,1.5537,207.79,207.73,13.92180737]
[1735838305565,2.27495265,207.79,207.73,13.92180737]
[1735838306093,1.5537,207.79,207.73,13.92180737]
[1735838306953,2.27495265,207.79,207.73,13.92180737]
[1735838308176,37.69869137,207.78,207.71,33.92180737]
[1735838308477,14.64306002,207.77,207.69,13.92180737]
[1735838308789,0.72125265,207.77,207.7,13.92180737]
[1735838309092,23.776884,207.78,207.71,13.92180737]
[1735838309676,37.69869137,207.78,207.71,13.92180737]
[1735838310579,13.92180737,207.77,207.69,33.92180737]
[1735838311265,37.69869137,207.74,207.69,20.0]
[1735838311461,13.92180737,207.73,207.66,13.92180737]
[1735838311662,13.92180737,207.72,207.65,25.96110737]
[1735838312276,13.92180737,207.72,207.65,13.92180737]
[1735838312460,37.69869137,207.71,207.63,13.92180737]
[1735838312858,37.69869137,207.71,207.66,20.0]
[1735838313793,37.69869137,207.72,207.65,33.92180737]
[1735838313993,23.776884,207.72,207.65,33.92180737]
[1735838314155,23.776884,207.72,207.66,13.92180737]
[1735838314359,23.776884,207.72,207.65,33.92180737]
[1735838314580,37.69869137,207.72,207.65,33.92180737]
[1735838315282,13.92180737,207.71,207.64,13.92180737]
[1735838315781,13.92180737,207.68,207.61,13.92180737]
[1735838316079,13.92180737,207.67,207.6,13.92180737]
[1735838317187,23.776884,207.67,207.61,13.92180737]
[1735838319278,13.92180737,207.7,207.63,13.92180737]
[1735838319480,1.5651,207.71,207.65,13.92180737]
[1735838319672,1.5651,207.71,207.66,13.92180737]
[1735838319990,1.5651,207.71,207.65,13.92180737]
[1735838320291,1.5651,207.71,207.66,13.92180737]
[1735838320594,1.5651,207.71,207.65,13.92180737]
[1735838321178,1.5651,207.71,207.64,13.92180737]
[1735838322465,15.48690737,207.71,207.64,13.92180737]
[1735838322789,37.69869137,207.7,207.63,13.92180737]
[1735838323296,13.92180737,207.69,207.61,13.92180737]
[1735838323496,13.92180737,207.69,207.62,13.92180737]
[1735838325275,37.69869137,207.7,207.62,13.92180737]
[1735838325486,37.69869137,207.7,207.63,13.92180737]
[1735838326367,37.69869137,207.7,207.62,13.92180737]
[1735838326568,37.69869137,207.7,207.63,13.92180737]
[1735838327388,15.48690737,207.71,207.62,30.0]
[1735838327589,6.019,207.73,207.68,13.92180737]
[1735838327790,15.52460737,207.76,207.68,13.92180737]
[1735838327969,1.6028,207.76,207.69,13.92180737]
[1735838329068,15.52460737,207.76,207.69,13.92180737]
[1735838329492,13.92180737,207.74,207.67,13.92180737]
[1735838329991,1.6028,207.76,207.71,13.92180737]
[1735838330698,1.6028,207.76,207.7,13.92180737]
[1735838330899,1.6028,207.76,207.71,13.92180737]
[1735838333501,15.52460737,207.76,207.68,13.92180737]
[1735838333996,15.52460737,207.76,207.69,33.92180737]
[1735838334795,15.52460737,207.76,207.7,13.92180737]
[1735838334796,1.6028,207.76,207.7,13.92180737]
[1735838335496,23.776884,207.75,207.7,13.92180737]
[1735838336596,1.6028,207.76,207.71,13.92180737]
[1735838337474,1.6028,207.76,207.72,13.92180737]
[1735838337674,1.6028,207.76,207.71,13.92180737]
[1735838337999,1.5,207.82,207.74,13.92180737]
[1735838338290,1.5,207.82,207.75,13.92180737]
[1735838338601,15.42180737,207.82,207.74,13.92180737]
[1735838338771,13.92180737,207.81,207.74,13.92180737]
[1735838339398,15.42180737,207.82,207.74,13.92180737]
[1735838339577,23.776884,207.81,207.74,13.92180737]
[1735838339785,37.69869137,207.81,207.74,13.92180737]
[1735838340626,15.42180737,207.82,207.74,13.92180737]
[1735838341278,37.69869137,207.81,207.74,13.92180737]
[1735838341598,23.776884,207.81,207.74,13.92180737]
[1735838342405,37.69869137,207.81,207.74,13.92180737]
[1735838343004,14.04729737,207.8,207.7,12.0361]
[1735838343311,37.69869137,207.77,207.69,20.0]
[1735838343608,13.92180737,207.75,207.69,20.0]
[1735838343908,14.04729737,207.8,207.69,20.0]
[1735838343909,13.92180737,207.73,207.69,20.0]
[1735838344275,8.91520874,207.73,207.66,8.91520874]
[1735838344492,8.91520874,207.74,207.67,8.91520874]
[1735838344688,8.91520874,207.77,207.7,8.91520874]
[1735838345023,8.91520874,207.78,207.71,8.91520874]
[1735838345518,8.91520874,207.78,207.7,8.91520874]
[1735838346212,24.153354,207.81,207.69,30.0]
[1735838346514,13.92584215,207.77,207.7,13.92584215]
[1735838348711,13.92584215,207.78,207.71,13.92584215]
[1735838349900,23.776884,207.77,207.68,12.0373]
[1735838350221,13.92584215,207.76,207.68,13.92584215]
[1735838350425,37.82821615,207.75,207.67,13.92584215]
[1735838350792,15.51914215,207.74,207.67,20.0]
[1735838351510,15.51914215,207.74,207.67,33.92584215]
[1735838351707,1.5933,207.74,207.68,13.92584215]
[1735838352323,15.51914215,207.74,207.67,33.92584215]
[1735838354628,15.51914215,207.74,207.67,20.0]
[1735838355035,13.92584215,207.73,207.67,20.0]
[1735838355335,13.92584215,207.69,207.62,13.92584215]
[1735838355494,13.92584215,207.68,207.61,13.92584215]
[1735838355698,13.92584215,207.69,207.62,13.92584215]
[1735838356341,0.25098,207.72,207.61,13.92584215]
[1735838356342,13.92584215,207.68,207.61,13.92584215]
[1735838356697,13.92584215,207.67,207.6,43.92584215]
[1735838356928,13.92584215,207.68,207.61,13.92584215]
[1735838357224,23.776884,207.68,207.61,13.92584215]
[1735838358804,13.92584215,207.7,207.63,13.92584215]
[1735838359004,13.92584215,207.73,207.66,13.92584215]
[1735838359717,13.92584215,207.72,207.65,13.92584215]
[1735838360731,13.92584215,207.73,207.66,13.92584215]
[1735838360943,15.51914215,207.74,207.67,13.92584215]
[1735838361618,1.5933,207.74,207.67,13.92584215]
[1735838361814,1.5933,207.74,207.68,13.92584215]
[1735838362421,1.5933,207.74,207.69,13.92584215]
[1735838362729,1.5933,207.74,207.68,13.92584215]
[1735838363239,13.92584215,207.76,207.69,13.92584215]
[1735838363537,13.92584215,207.78,207.71,13.92584215]
[1735838363922,13.92584215,207.78,207.7,13.92584215]
[1735838364410,13.92584215,207.78,207.71,13.92584215]
[1735838364732,13.92584215,207.77,207.7,13.92584215]
[1735838364924,13.92584215,207.78,207.7,13.92584215]
[1735838365229,13.92584215,207.78,207.63,0.72204826]
[1735838365230,13.92584215,207.73,207.65,25.96524215]
[1735838366108,13.92584215,207.73,207.65,13.92584215]
[1735838367216,13.92584215,207.73,207.66,13.92584215]
[1735838368010,13.92584215,207.74,207.67,13.92584215]
[1735838368209,23.902374,207.75,207.68,13.92584215]
[1735838368440,13.92584215,207.74,207.67,13.92584215]
[1735838368729,13.92584215,207.75,207.68,13.92584215]
[1735838370431,8.91339509,207.75,207.68,8.91339509]
[1735838371427,8.91339509,207.76,207.69,8.91339509]
[1735838371633,23.776884,207.76,207.7,8.91339509]
[1735838372842,23.776884,207.76,207.69,8.91339509]
[1735838376043,8.91339509,207.78,207.71,8.91339509]
[1735838376837,8.91339509,207.77,207.7,8.91339509]
[1735838378348,8.91339509,207.76,207.69,8.91339509]
[1735838378714,8.91339509,207.77,207.7,8.91339509]
[1735838378918,9.03888509,207.78,207.71,8.91339509]
[1735838379240,1.5426,207.8,207.73,8.91339509]
[1735838379541,10.45599509,207.8,207.73,8.91339509]
[1735838381714,1.5426,207.8,207.74,8.91339509]
[1735838382352,1.5426,207.8,207.75,8.91339509]
[1735838383427,1.5426,207.8,207.74,8.91339509]
[1735838383629,10.45599509,207.8,207.73,8.91339509]
[1735838383842,8.91339509,207.79,207.72,8.91339509]
[1735838384749,10.45599509,207.8,207.72,8.91339509]
[1735838385339,1.5426,207.8,207.73,8.91339509]
[1735838385548,1.5426,207.8,207.75,8.91339509]
[1735838385932,8.91339509,207.83,207.76,8.91339509]
[1735838386335,10.44379509,207.85,207.77,8.91339509]
[1735838386535,10.44379509,207.85,207.78,8.91339509]
[1735838387146,10.44379509,207.85,207.76,30.0]
[1735838387147,1.5304,207.85,207.79,8.91339509]
[1735838387460,1.5304,207.85,207.8,8.91339509]
[1735838387645,1.5304,207.85,207.79,8.91339509]
[1735838392559,8.91339509,207.82,207.75,8.91339509]
[1735838393139,23.776884,207.84,207.73,30.0]
[1735838393140,8.91339509,207.83,207.76,8.91339509]
[1735838393760,8.91339509,207.82,207.75,8.91339509]
[1735838393942,8.91339509,207.82,207.74,8.91339509]
[1735838394150,1.5304,207.85,207.74,8.91339509]
[1735838394151,8.91339509,207.81,207.74,8.91339509]
[1735838395770,8.91339509,207.82,207.75,8.91339509]
[1735838397341,23.776884,207.82,207.75,8.91339509]
[1735838398145,8.91339509,207.82,207.75,8.91339509]
[1735838398752,0.12549,207.83,207.74,8.91339509]
[1735838398753,8.91339509,207.81,207.74,8.91339509]
[1735838399148,8.91339509,207.81,207.73,8.91339509]
[1735838399740,8.91339509,207.82,207.75,8.91339509]
[1735838400168,10.44379509,207.85,207.77,8.91339509]
[1735838400355,1.5304,207.85,207.79,8.91339509]
[1735838401170,10.44379509,207.85,207.78,8.91339509]
[1735838402067,1.5304,207.85,207.79,8.91339509]
[1735838403150,10.44379509,207.85,207.78,8.91339509]
[1735838403353,8.91339509,207.83,207.74,12.0339]
[1735838403566,8.91339509,207.82,207.75,8.91339509]
[1735838404075,8.91339509,207.81,207.74,8.91339509]
[1735838404370,8.91339509,207.81,207.73,8.91339509]
[1735838404571,8.91339509,207.82,207.75,8.91339509]
[1735838404769,32.69027909,207.84,207.77,8.91339509]
[1735838404972,10.44379509,207.85,207.78,8.91339509]
[1735838407280,1.5304,207.85,207.79,8.91339509]
[1735838407461,1.5304,207.85,207.8,8.91339509]
[1735838409274,1.5304,207.85,207.79,8.91339509]
[1735838410577,1.5304,207.85,207.8,8.91339509]
[1735838411566,6.632,207.87,207.81,8.91339509]
[1735838411874,23.776884,207.88,207.82,8.91339509]
[1735838412374,10.45559509,207.9,207.83,8.91339509]
[1735838413978,10.45559509,207.9,207.84,8.91339509]
[1735838413979,1.5422,207.9,207.84,8.91339509]
[1735838414280,1.5422,207.9,207.86,8.91339509]
[1735838414955,1.5422,207.9,207.84,28.91339509]
[1735838415277,1.5422,207.9,207.85,8.91339509]
[1735838415480,1.5422,207.9,207.84,28.91339509]
[1735838416379,1.5422,207.9,207.86,8.91339509]
[1735838416878,8.91339509,207.93,207.86,8.91339509]
[1735838417467,8.91339509,207.92,207.85,8.91339509]
[1735838417865,8.91339509,207.93,207.85,8.91339509]
[1735838418681,10.50569509,207.95,207.87,8.91339509]
[1735838418882,10.50569509,207.95,207.88,8.91339509]
[1735838419865,1.5923,207.95,207.89,8.91339509]
[1735838420867,8.91339509,207.93,207.86,20.0]
[1735838421067,8.91339509,207.92,207.85,8.91339509]
[1735838421688,8.91339509,207.91,207.84,8.91339509]
[1735838421881,8.91339509,207.89,207.82,8.91339509]
[1735838422286,8.91339509,207.88,207.81,8.91339509]
[1735838422484,0.37647,207.93,207.79,8.91339509]
[1735838422485,8.91339509,207.86,207.79,8.91339509]
[1735838422985,8.91339509,207.85,207.78,8.91339509]
[1735838423561,8.91339509,207.83,207.74,30.0]
[1735838423764,1.6185,207.87,207.74,30.0]
[1735838423765,8.91339509,207.81,207.74,8.91339509]
[1735838423964,8.91339509,207.79,207.71,30.0]
[1735838424290,8.91339509,207.78,207.71,8.91339509]
[1735838424489,8.91339509,207.77,207.7,8.91339509]
[1735838424690,8.91339509,207.78,207.7,8.91339509]
[1735838425467,8.91339509,207.77,207.7,8.91339509]
[1735838425670,8.91339509,207.77,207.69,8.91339509]
[1735838425671,8.91339509,207.76,207.69,8.91339509]
[1735838425884,10.57469509,207.77,207.7,8.91339509]
[1735838426371,15.58623248,207.77,207.7,13.92493248]
[1735838426774,15.58623248,207.77,207.69,13.92493248]
[1735838426775,13.92493248,207.76,207.69,13.92493248]
[1735838427167,13.92493248,207.76,207.68,13.92493248]
[1735838428267,13.92493248,207.76,207.69,13.92493248]
[1735838429090,15.58623248,207.77,207.7,13.92493248]
[1735838429671,13.92493248,207.76,207.69,13.92493248]
[1735838430790,13.92493248,207.71,207.64,13.92493248]
[1735838430967,13.92493248,207.7,207.63,13.92493248]
[1735838431175,13.92493248,207.71,207.63,13.92493248]
[1735838431373,13.92493248,207.7,207.63,13.92493248]
[1735838431569,13.92493248,207.69,207.61,7.51648971]
[1735838431797,13.92493248,207.69,207.62,13.92493248]
[1735838432181,13.92493248,207.72,207.65,13.92493248]
[1735838432585,13.92493248,207.71,207.62,30.0]
[1735838432771,13.92493248,207.71,207.64,13.92493248]
[1735838434079,13.92493248,207.72,207.65,13.92493248]
[1735838434402,13.92493248,207.71,207.64,13.92493248]
[1735838435400,13.92493248,207.7,207.63,13.92493248]
[1735838436689,13.92493248,207.71,207.64,13.92493248]
[1735838436895,13.92493248,207.73,207.65,13.92493248]
[1735838437577,13.92493248,207.72,207.65,13.92493248]
[1735838438571,13.92493248,207.73,207.65,13.92493248]
[1735838438777,13.92493248,207.73,207.66,13.92493248]
[1735838439774,0.12549,207.74,207.67,13.92493248]
[1735838439775,14.05042248,207.74,207.67,13.92493248]
[1735838440187,13.92493248,207.73,207.66,13.92493248]
[1735838440785,14.05042248,207.74,207.67,13.92493248]
[1735838441308,37.82730648,207.74,207.62,30.0]
[1735838441478,13.92493248,207.71,207.59,30.0]
[1735838441677,13.92493248,207.7,207.63,13.92493248]
[1735838441887,0.12549,207.7,207.64,13.92493248]
[1735838442100,13.92493248,207.74,207.67,13.92493248]
[1735838442477,13.92493248,207.73,207.65,13.92493248]
[1735838442678,13.92493248,207.73,207.66,13.92493248]
[1735838442880,0.12549,207.72,207.67,13.92493248]
[1735838443092,37.95279648,207.74,207.67,13.92493248]
[1735838443805,0.12549,207.73,207.68,13.92493248]
[1735838444297,6.5554,207.75,207.68,13.92493248]
[1735838444599,20.48033248,207.75,207.68,13.92493248]
[1735838445189,13.92493248,207.74,207.67,13.92493248]
[1735838445616,14.05042248,207.73,207.66,13.92493248]
[1735838445979,0.12549,207.73,207.66,13.92493248]
[1735838446188,20.48033248,207.75,207.68,13.92493248]
[1735838446414,15.4697797,207.75,207.68,8.9143797]
[1735838447288,15.4697797,207.75,207.64,30.0]
[1735838447289,10.5756797,207.77,207.69,8.9143797]
[1735838447487,1.6613,207.77,207.71,8.9143797]
[1735838448417,1.6613,207.77,207.72,8.9143797]
[1735838448614,1.6613,207.77,207.71,8.9143797]
[1735838448909,1.6613,207.77,207.7,8.9143797]
[1735838449108,10.5756797,207.77,207.7,8.9143797]
[1735838449310,1.6613,207.77,207.7,8.9143797]
[1735838449507,1.6613,207.77,207.71,8.9143797]
[1735838452988,1.6613,207.77,207.73,8.9143797]
[1735838453614,0.12549,207.79,207.73,8.9143797]
[1735838454527,6.3014,207.8,207.73,8.9143797]
[1735838454693,1.574,207.82,207.77,8.9143797]
[1735838455011,1.574,207.82,207.78,8.9143797]
[1735838456313,15.3121797,207.86,207.79,8.9143797]
[1735838456613,6.3978,207.86,207.8,8.9143797]
[1735838458719,0.12549,207.85,207.78,8.9143797]
[1735838458896,9.0398697,207.85,207.77,8.9143797]
[1735838459096,0.12549,207.85,207.78,8.9143797]
[1735838459316,24.153354,207.85,207.78,8.9143797]
[1735838459532,33.0677337,207.85,207.77,8.9143797]
[1735838459904,0.12549,207.83,207.73,1.616]
[1735838460217,9.0398697,207.83,207.76,8.9143797]
[1735838460421,0.12549,207.83,207.77,8.9143797]
[1735838461034,8.9143797,207.82,207.75,8.9143797]
[1735838461232,24.153354,207.81,207.69,30.72192133]
[1735838461429,0.12549,207.83,207.72,8.9143797]
[1735838461430,0.12549,207.77,207.72,8.9143797]
[1735838463808,0.12549,207.77,207.71,8.9143797]
[1735838464526,0.37647,207.73,207.62,30.72212433]
[1735838464721,0.12549,207.71,207.64,8.9143797]
[1735838465029,0.37647,207.71,207.64,8.9143797]
[1735838466024,28.9143797,207.74,207.67,8.9143797]
[1735838466332,20.0,207.74,207.68,8.9143797]
[1735838466503,6.3448,207.77,207.7,8.9143797]
[1735838466705,8.9143797,207.76,207.69,8.9143797]
[1735838466929,0.12549,207.75,207.69,8.9143797]
[1735838467924,8.9143797,207.75,207.69,23.776884]
[1735838468227,0.37647,207.74,207.68,8.9143797]
[1735838468433,8.9143797,207.76,207.69,32.6912637]
[1735838468936,0.12549,207.75,207.69,32.6912637]
[1735838469532,0.12549,207.75,207.69,23.776884]
[1735838470132,0.12549,207.75,207.7,8.9143797]
[1735838470736,0.12549,207.75,207.69,8.9143797]
[1735838470941,0.12549,207.75,207.69,23.776884]
[1735838471109,9.0398697,207.75,207.69,23.776884]
[1735838471913,9.0398697,207.73,207.66,8.9143797]
[1735838472112,0.12549,207.73,207.66,8.9143797]
[1735838472515,0.12549,207.73,207.67,23.776884]
[1735838473931,8.9143797,207.74,207.67,8.9143797]
[1735838474129,6.3448,207.77,207.71,23.776884]
[1735838474311,6.3448,207.77,207.71,32.6912637]
[1735838475233,0.12549,207.76,207.7,8.9143797]
[1735838475419,0.12549,207.76,207.71,23.776884]
[1735838475933,0.12549,207.76,207.69,8.9143797]
[1735838476141,0.12549,207.76,207.7,23.776884]
[1735838476819,0.12549,207.76,207.72,23.776884]
[1735838478651,6.3448,207.77,207.72,23.776884]
[1735838478947,1.6334,207.8,207.74,32.6912637]
[1735838480241,8.9143797,207.79,207.74,23.776884]
[1735838480424,10.5477797,207.8,207.73,32.6912637]
[1735838481540,1.6334,207.8,207.74,8.9143797]
[1735838481734,0.12549,207.77,207.69,20.0]
[1735838482048,8.9143797,207.76,207.69,28.9143797]
[1735838482752,8.9143797,207.77,207.7,32.6912637]
[1735838483042,0.12549,207.77,207.72,23.776884]
[1735838483221,18.1321,207.82,207.69,20.0]
[1735838483222,1.5645,207.86,207.77,23.776884]
[1735838483416,10.4788797,207.86,207.8,23.776884]
[1735838483644,0.37647,207.85,207.8,23.776884]
[1735838483819,10.4788797,207.86,207.8,23.776884]
[1735838483820,1.5645,207.86,207.8,23.776884]
[1735838484138,1.5645,207.86,207.82,23.776884]
[1735838484840,1.5645,207.86,207.81,23.776884]
[1735838485225,1.5645,207.86,207.81,8.9143797]
[1735838485417,0.12549,207.87,207.81,8.9143797]
[1735838485627,8.9143797,207.89,207.82,8.9143797]
[1735838485824,8.9143797,207.89,207.81,8.9143797]
[1735838486030,8.9143797,207.88,207.81,8.9143797]
[1735838486339,8.9143797,207.88,207.76,30.0]
[1735838486340,13.91119658,207.87,207.8,13.91119658]
[1735838486545,13.91119658,207.86,207.79,33.91119658]
[1735838486754,13.91119658,207.87,207.8,37.68808058]
[1735838487123,13.91119658,207.86,207.8,23.776884]
[1735838487649,13.91119658,207.87,207.8,37.68808058]
[1735838488028,0.37647,207.85,207.8,23.776884]
[1735838488342,13.91119658,207.88,207.81,13.91119658]
[1735838488836,0.12549,207.87,207.81,13.91119658]
[1735838491652,0.12549,207.87,207.8,13.91119658]
[1735838492454,0.12549,207.87,207.81,13.91119658]
[1735838492840,13.91119658,207.9,207.82,13.91119658]
[1735838493156,1.6459,207.91,207.87,23.776884]
[1735838493454,13.91119658,207.94,207.87,23.776884]
[1735838494253,12.0219,207.96,207.84,13.91119658]
[1735838494254,13.91119658,207.91,207.84,13.91119658]
[1735838494433,0.12549,207.9,207.84,13.91119658]
[1735838494829,0.12549,207.9,207.85,23.776884]
[1735838495138,0.12549,207.88,207.82,13.91119658]
[1735838495339,14.03668658,207.88,207.8,13.91119658]
[1735838495540,14.03668658,207.88,207.81,23.776884]
[1735838495761,14.03668658,207.88,207.81,37.68808058]
[1735838496272,1.5154,207.87,207.8,23.776884]
[1735838496472,13.91119658,207.86,207.8,23.776884]
[1735838496640,1.5154,207.87,207.81,13.91119658]
[1735838496842,20.30448658,207.88,207.77,23.776884]
[1735838496843,0.12549,207.88,207.83,23.776884]
[1735838497152,15.42659658,207.92,207.85,23.776884]